[Event "ETCC Open 2023"]
[Site "Budva"]
[Date "2023.11.11"]
[Round "1.26"]
[White "Kazakouski, Valery"]
[Black "Santos Latasa, Jaime"]
[Result "1/2-1/2"]
[ECO "C82"]
[WhiteElo "2577"]
[BlackElo "2635"]
[Annotator "TA"]
[PlyCount "120"]
[EventDate "2023.11.10"]
[EventType "team-tourn"]
[EventCountry "MNE"]
[SourceTitle "playchess.com"]
[Source "ChessBase"]
[SourceQuality "1"]
[WhiteTeam "Lithuania"]
[BlackTeam "Spain"]
[WhiteTeamCountry "LTU"]
[BlackTeamCountry "ESP"]
[TimeControl "40/5400+30:1800+30"]

{[%evp 19,120,0,0,0,0,0,0,0,0,0,0,0,0,0,0,0,0,19,40,27,17,-22,-20,-60,-51,-52,-66,-119,-100,-189,-172,-187,-197,-167,-163,-232,-211,-485,-216,-220,-229,-216,-205,-260,-218,-197,-208,-220,-199,-205,-158,-147,-150,-148,-144,-207,-215,-345,-345,-306,0,-252,-207,-191,-197,-341,-341,-341,-341,-332,-277,-222,-95,-79,-83,-85,-70,-78,-70,-79,-14,-68,-52,-184,-171,-194,-197,-193,-192,-129,-177,0,0,0,0,0,0,0,0,0,0,0,0]} 1. e4 {[%emt 0:00:04]} e5 {[%emt 0:00:21]} 2. Nf3 {[%emt 0:00:14]} Nc6 {[%emt 0:00:05]} 3. Bb5 {[%emt 0:00:30]} a6 {[%emt 0:00:07]} 4. Ba4 {[%emt 0:00:05]} Nf6 {[%emt 0:00:12]} 5. O-O {[%emt 0:00:18]} Nxe4 {[%emt 0:03:41]} 6. d4 {[%emt 0:00:07]} b5 {[%emt 0:00:04]} 7. Bb3 {[%emt 0:00:06]} d5 {[%emt 0:00:04]} 8. dxe5 {[%emt 0:00:06]} Be6 {[%emt 0:00:04]} 9. c3 {[%emt 0:00:19]} Bc5 {[%emt 0:00:36]} 10. Nbd2 {[%emt 0:01:02][%cal Bb1d2,Bd2f1,Bf1e3,Be3c2][%mdl 32]} O-O {[%emt 0:01:33]} 11. Bc2 {[%emt 0:00:17] C82: Open Ruy Lopez: 9 c3 without 9...Be7.} Nxf2 {[%emt 0:01:19]} 12. Rxf2 {[%emt 0:00:07][%cal Od2b3]} Bxf2+ {[%emt 0:00:04]} 13. Kxf2 {[%emt 0:00:11]} f6 {[%emt 0:00:03]} 14. Nf1 $1 {[%emt 0:00:24][%mdl 4] is more profitable than 14.exf6 at the moment.} fxe5 {[%emt 0:00:10] Strongly threatening ...e4.} 15. Kg1 {[%emt 0:00:10][%cal Oc2h7]} Bg4 {[%emt 0:00:04]} 16. Ne3 {[%emt 0:06:27]} Be6 {[%emt 0:00:38]} 17. b3 {[%emt 0:06:22]} d4 {[%emt 0:00:26]} 18. cxd4 {[%emt 0:12:10]} (18. Qd3 $5 g6 $8 19. cxd4 Nxd4 20. Nxe5 $11) 18... Nxd4 {[%emt 0:00:40]} 19. Be4 {[%emt 0:05:26]} (19. Nxd4 {simplifies} Qxd4 20. Rb1 Qxd1+ 21. Bxd1 c5 22. Be2) 19... Rc8 {[%emt 0:01:49] [#]} 20. Nc2 $146 {[%emt 0:24:04][%cal Rf3d4]} (20. Nxe5 $5 {[%cal Rc1b2]} Qf6 21. Bb2 (21. Qxd4 Qf2+ 22. Kh1 Qe1+) (21. N3g4 $2 Bxg4 22. Nxg4 Ne2+ {[%mdl 64] Discovered Attack} 23. Qxe2 Qxa1 $19) 21... Qf2+ 22. Kh1 Qxb2 23. Rb1 Qxa2 24. Qxd4 $11) ({Predecessor:} 20. Bb2 Rf4 21. Bb7 Rb8 22. g3 Rf8 23. Bxd4 exd4 24. Nxd4 {1-0 Kuybokarov,T (2584)-Kushagra,M (2412) Qatar Masters op 2023 (2)}) 20... Bd5 {[%emt 0:10:04]} 21. Bxd5+ {[%emt 0:07:35]} (21. Nxe5 $2 Bxe4 22. Qxd4 Bxc2 $19) (21. Bxh7+ {looks sharper.} Kxh7 22. Ncxd4 exd4 23. Ng5+) 21... Qxd5 {[%emt 0:00:21]} 22. Ncxd4 {[%emt 0:04:40][%cal Oc1b2]} c5 $1 {[%emt 0:01:28][%mdl 64] Pin} 23. Ba3 {[%emt 0:07:39]} (23. Qd3 $15) 23... exd4 {[%emt 0:04:47]} 24. Rc1 {[%emt 0:02:00]} (24. b4 $17 {keeps fighting.}) 24... Rfe8 $19 {[%emt 0:03:55]} 25. Qd2 {[%emt 0:01:01]} h6 {[%emt 0:12:28]} 26. Bb2 {[%emt 0:04:47]} Rc6 {[%emt 0:02:43]} 27. h3 {[%emt 0:08:02]} (27. Rf1 $142) 27... Rce6 {[%emt 0:02:08] ...Re2 would be deadly.} 28. Rc2 $2 {[%emt 0:02:24]} (28. Re1) 28... d3 {[%emt 0:06:23]} (28... Qd6 $142 29. Bxd4 Re2 30. Qxe2 Rxe2 31. Rxe2 cxd4) 29. Qc3 {[%emt 0:01:29][%csl Gb2][%cal Rc3g7]} Rg6 {[%emt 0:00:42]} (29... dxc2 $2 30. Qxg7#) 30. Rf2 {[%emt 0:00:23]} b4 {[%emt 0:00:04]} 31. Qc1 {[%emt 0:02:59]} Rge6 {[%emt 0:03:45]} 32. Qf4 {[%emt 0:01:56]} Re2 {[%emt 0:00:29] White must now prevent ...Rxf2.} 33. Qg3 {[%emt 0:02:24][%csl Gb2][%cal Rg3g7]} Qd7 {[%emt 0:02:29]} 34. Bc1 {[%emt 0:01:00]} Rxf2 {[%emt 0:02:01]} 35. Qxf2 {[%emt 0:00:02]} Qd5 {[%emt 0:01:26]} (35... Re2 $6 36. Qxc5 Rc2 37. Qe3 $11) 36. Qg3 {[%emt 0:00:42]} Kh7 {[%emt 0:00:32]} 37. Bd2 {[%emt 0:00:49]} (37. Kh2 $17) 37... Re2 {[%emt 0:04:03]} 38. Qf4 {[%emt 0:00:09]} (38. Kh1 {was called for.}) 38... Qe4 {[%emt 0:00:51] aiming for ...Qxf4.} 39. Qf8 {[%emt 0:00:48] Prevents Qxf4.} Qd5 {[%emt 0:06:21]} 40. Qf4 $1 {[%emt 0:00:38]} Re4 {[%emt 0:02:56]} 41. Qc7 {[%emt 0:02:54]} Re6 {[%emt 0:01:19] Prevents Qb6.} 42. Kf2 {[%emt 0:07:27]} (42. Qb8 $142) 42... Re2+ {[%emt 0:02:45]} 43. Kg1 {[%emt 0:01:21]} Qf5 {[%emt 0:00:25]} 44. Qd8 {[%emt 0:10:43]} Qg6 {[%emt 0:02:19][%csl Ge2][%cal Rg6g2]} 45. g4 {[%emt 0:00:11]} Re8 {[%emt 0:02:19] Dodges Kf1} (45... a5 $19 {[%cal Oa5a4] has better winning chances. Hoping for ...a4!} 46. Kf1 a4) 46. Qd7 $17 {[%emt 0:00:36]} Qe4 {[%emt 0:01:42]} 47. Qf7 {[%emt 0:02:49]} Re7 {[%emt 0:03:19]} 48. Qf8 {[%emt 0:00:02]} Qe6 $36 {[%emt 0:00:46][%mdl 2048] Black has the initiative.} 49. Kg2 $1 {[%emt 0:01:33] [#]} Rc7 {[%emt 0:04:43]} (49... Rf7 50. Qxc5 Rxf3 51. Kxf3 $11) ({Black should try} 49... Qd6 $1 $17 {( -> ...Re2+)} 50. Be3 Qe6) 50. Kg3 {[%emt 0:01:29]} (50. g5 $11) 50... Qd5 $1 $15 {[%emt 0:01:19]} ({Of course not} 50... Rf7 51. Qxc5 Rxf3+ 52. Kxf3 $11) 51. Qe8 {[%emt 0:03:08]} (51. Bf4 $1 $15 Rf7 52. Qd6 Qxd6 53. Bxd6) 51... Rf7 $19 {[%emt 0:02:11]} 52. Ne5 {[%emt 0:00:40]} Rf6 {[%emt 0:00:58]} 53. g5 {[%emt 0:00:53] [#]} hxg5 {[%emt 0:01:28]} 54. Bxg5 {[%emt 0:00:33]} Rf1 {[%emt 0:02:51] And now ...Rg1+ would win.} 55. Bf4 $2 {[%emt 0:02:40]} (55. Qg6+ $19 Kg8 56. Ng4 (56. Qe8+ $2 Rf8 $19)) 55... Rg1+ {[%emt 0:09:32] The position is equal.} (55... Qe4 $5 56. Qh5+ $8 Kg8 57. Qe8+ Kh7 58. Qh5+ Kg8 59. Qe8+ Kh7 $11) 56. Kh4 {[%emt 0:00:02]} g5+ {[%emt 0:01:27]} 57. Bxg5 {[%emt 0:00:02] Threatening mate with Qg6+.} Qe4+ {[%emt 0:00:08]} 58. Kh5 {[%emt 0:00:10]} Qe2+ {[%emt 0:00:11]} 59. Kh4 {[%emt 0:00:12] Intending Qg6+ and mate.} Qe1+ {[%emt 0:01:08]} (59... Qxa2 $2 {leads to mate.} 60. Qg6+ Kh8 61. Nf7#) (59... Rg4+ $2 60. Nxg4 Qxe8 61. Nf6+ Kg7 62. Nxe8+ $18) 60. Kh5 {[%emt 0:00:08] White threatens Qg6+ and mate. Really sharp!} Qe2+ {[%emt 0:27:44] An exciting game.   Weighted Error Value: White=0.30/Black=0.26 (precise)} 1/2-1/2

[Event "ETCC Open 2023"]
[Site "Budva"]
[Date "2023.11.11"]
[Round "1.27"]
[White "Shirov, Alexei"]
[Black "Pultinevicius, Paulius"]
[Result "1-0"]
[ECO "B12"]
[WhiteElo "2668"]
[BlackElo "2589"]
[Annotator "TA"]
[PlyCount "67"]
[EventDate "2023.11.10"]
[EventType "team-tourn"]
[EventCountry "MNE"]
[SourceTitle "playchess.com"]
[Source "ChessBase"]
[SourceQuality "1"]
[WhiteTeam "Spain"]
[BlackTeam "Lithuania"]
[WhiteTeamCountry "ESP"]
[BlackTeamCountry "LTU"]
[TimeControl "40/5400+30:1800+30"]

{[%evp 9,67,14,11,6,18,3,12,0,9,1,0,0,6,0,12,0,0,0,0,0,0,0,0,0,50,49,36,43,83,71,94,118,114,97,149,147,153,153,205,214,276,270,248,239,230,255,241,236,242,241,239,241,1250,1183,1670,1706,1785,1664,29982,29981]} 1. e4 {[%emt 0:00:03]} c6 {[%emt 0:00:05]} 2. d4 {[%emt 0:00:06]} d5 {[%emt 0:00:04]} 3. e5 {[%emt 0:00:07]} Bf5 {[%emt 0:00:05]} 4. h4 {[%emt 0:00:14]} h5 {[%emt 0:00:04]} 5. Bd3 {[%emt 0:00:09]} Bxd3 {[%emt 0:00:06]} 6. Qxd3 {[%emt 0:00:07][%cal Oe5e6] B12: Caro-Kann: Advance Variation.} Qa5+ {[%emt 0:00:06]} 7. Nd2 {[%emt 0:00:12][%cal Oe5e6]} e6 $1 {[%emt 0:00:06]} 8. Ngf3 {[%emt 0:00:08] The position is equal.} Nh6 {[%emt 0:00:06]} 9. O-O {[%emt 0:00:16]} Nf5 {[%emt 0:00:03]} 10. Nb3 {[%emt 0:00:14]} Qa6 {[%emt 0:00:06]} 11. Qd1 {[%emt 0:00:10]} b6 {[%emt 0:00:05]} 12. a4 $5 {[%emt 0:00:17][%mdl 4] A promising side line.} (12. Bg5 c5 13. dxc5 Bxc5 14. c3 Nc6 15. Re1 Rc8 16. Nxc5 bxc5 17. b3 Rc7 18. Qc2 O-O 19. Nh2 Qa5 {0-1 Shirov,A (2668)-Pultinevicius,P (2525) Casablanca Mohammed op 4th 2023 (7)}) 12... c5 {[%emt 0:00:42]} 13. a5 {[%emt 0:01:17] [#]} c4 $146 {[%emt 0:00:26]} ({Predecessor:} 13... Nc6 14. axb6 Qxb6 15. dxc5 Bxc5 16. Nxc5 Qxc5 17. c3 O-O 18. Ra4 g6 19. Re1 Rfc8 {1-0 Smith,O (2042)-Larkin,B (1850) South Wales  op 18th 2023 (7)}) 14. axb6 {[%emt 0:00:12]} Qxb6 {[%emt 0:00:05]} 15. Nbd2 {[%emt 0:00:12][%cal Bb3d2,Bd2b1,Bb1c3,Bc3e2,Be2f4][%mdl 32]} Be7 {[%emt 0:45:58]} 16. b3 {[%emt 0:38:22]} c3 {[%emt 0:25:18]} (16... cxb3 $11 17. Nxb3 a5) 17. Nb1 $14 {[%emt 0:00:36]} Nc6 {[%emt 0:00:04][%cal Rc6d4]} 18. Be3 {[%emt 0:00:40]} Rc8 {[%emt 0:02:02]} 19. Nxc3 {[%emt 0:01:34] Black is on the road to losing.} Nxh4 {[%emt 0:16:15]} 20. Nxh4 {[%emt 0:19:26]} Bxh4 {[%emt 0:00:05]} 21. Ne2 {[%emt 0:00:06]} Qb7 {[%emt 0:03:41] [#]} (21... Qd8 $142) 22. c4 $1 $16 {[%emt 0:06:00]} Rd8 {[%emt 0:02:49]} 23. Nf4 {[%emt 0:06:45][%mdl 64] cxd5 would be deadly. Discovered Attack} dxc4 {[%emt 0:00:34]} (23... Nb4 $16 24. Nxh5 Rh7) 24. bxc4 $18 {[%emt 0:00:14][%cal Bb3c4,Bc4c5,Bc5c6,Bc6c7][%mdl 32] Black must now prevent d5.} (24. Nxh5 g6 25. Nf4 (25. Ng7+ Kf8 $17) 25... cxb3 $11) 24... Nxe5 {[%emt 0:00:09]} 25. Qa4+ {[%emt 0:00:13]} (25. Nxh5 Nxc4 26. Qe2 Rh7 $15) 25... Nd7 {[%emt 0:00:05][%cal Be5d7,Bd7b6,Bb6c8][%mdl 32]} 26. c5 {[%emt 0:03:24] d5 is the strong threat.} (26. Qxa7 $6 Qe4 $16) 26... Qe4 {[%emt 0:02:11][%cal Oh4g3] Repels d5} 27. c6 {[%emt 0:01:33]} (27. Qxa7 O-O $14) 27... Nb6 {[%emt 0:00:04]} 28. Qxa7 {[%emt 0:00:38]} (28. Qb5 $6 O-O) 28... Nc8 {[%emt 0:02:10]} (28... Qxc6 $2 29. Rfc1 (29. Ra6 Nc8 $16) 29... Qe4 30. Qxb6 $18) 29. Qc5 {[%emt 0:09:14]} Be7 {[%emt 0:00:50]} 30. Qe5 {[%emt 0:00:07]} Qh7 {[%emt 0:00:34]} (30... Qxe5 31. dxe5 g5) 31. c7 {[%emt 0:01:24] Hoping for Qb5+.} Rd7 {[%emt 0:00:03]} 32. Ra8 {[%emt 0:00:32]} O-O {[%emt 0:00:05] [#]} 33. Nxe6 $1 {[%emt 0:00:09][%mdl 512]} Re8 {[%emt 0:00:45]} (33... Rxc7 34. Nxf8) 34. Qb5 {[%emt 0:00:26] Weighted Error Value: White=0.02 (flawless) /Black=0.38} 1-0

[Event "ETCC Open 2023"]
[Site "Budva"]
[Date "2023.11.11"]
[Round "1.28"]
[White "Klabis, Rokas"]
[Black "Yuffa, Daniil"]
[Result "0-1"]
[ECO "B31"]
[WhiteElo "2412"]
[BlackElo "2600"]
[Annotator "TA"]
[PlyCount "90"]
[EventDate "2023.11.10"]
[EventType "team-tourn"]
[EventCountry "MNE"]
[SourceTitle "playchess.com"]
[Source "ChessBase"]
[SourceQuality "1"]
[WhiteTeam "Lithuania"]
[BlackTeam "Spain"]
[WhiteTeamCountry "LTU"]
[BlackTeamCountry "ESP"]
[TimeControl "40/5400+30:1800+30"]

{[%evp 11,90,20,26,10,12,12,6,6,9,23,11,8,7,11,15,23,20,29,20,35,18,15,19,-18,-30,-67,-72,-54,-12,-9,0,0,0,0,27,21,60,0,0,0,0,0,0,0,0,0,0,0,0,0,0,0,0,0,0,0,0,-522,0,0,0,0,0,-19,-4,-31,-33,-41,-63,-516,-416,-815,-674,-12836,-12836,-12840,-12840,-12841,-12841,-12841,-12842]} 1. e4 {[%emt 0:00:04]} c5 {[%emt 0:00:21]} 2. Nf3 {[%emt 0:00:20]} Nc6 {[%emt 0:00:26]} 3. Bb5 {[%emt 0:00:28]} g6 {[%emt 0:00:22]} 4. Bxc6 {[%emt 0:00:31]} bxc6 {[%emt 0:00:07]} 5. O-O {[%emt 0:00:06]} Bg7 {[%emt 0:00:05]} 6. Re1 {[%emt 0:01:08]} Nh6 {[%emt 0:00:30] 6...Qc7 injects fresh life into this line.} 7. h3 {[%emt 0:00:35] B31: Sicilian: 2...Nc6 3 Bb5 g6.} O-O {[%emt 1:32:09]} 8. c3 {[%emt 0:02:27]} f5 {[%emt 0:00:00]} 9. e5 {[%emt 0:01:11] The position is equal.} Nf7 {[%emt 0:00:00]} 10. d4 {[%emt 0:00:25]} cxd4 {[%emt 0:00:00]} 11. cxd4 {[%emt 0:00:05]} Bb7 {[%emt 0:00:00][%cal Oc6c5]} 12. Na3 {[%emt 0:05:49]} Rc8 $5 {[%emt 0:00:00][%mdl 4] A promising side line.} 13. Be3 {[%emt 0:07:35] [#]} e6 $146 {[%emt 0:00:00][%cal Oc6c5]} ({Predecessor:} 13... d6 14. e6 Nh8 15. Qd2 c5 16. d5 f4 17. Bxf4 Rf5 18. Nc4 Qf8 19. Bxd6 Rxd5 {1-0 Dubov,D (2711)-Fedoseev,V (2701) Chess.com Rapid Wk12 Swiss 2022 (3)}) 14. Nc4 {[%emt 0:06:50]} f4 {[%emt 0:00:00]} 15. Bxf4 {[%emt 0:21:45] And now b4 would win.} c5 {[%emt 0:00:00]} 16. Nfd2 {[%emt 0:49:11][%cal Bf3d2,Bd2e4,Be4d6][%mdl 32]} cxd4 {[%emt 0:00:00]} 17. Rc1 {[%emt 0:00:00]} Nh6 {[%emt 0:00:00]} 18. Bg3 {[%emt 0:00:00]} Nf5 {[%emt 0:00:00] Black is more active.} 19. Ne4 {[%emt 0:00:00]} Nxg3 {[%emt 0:00:00]} 20. fxg3 {[%emt 0:00:00]} Bd5 {[%emt 0:00:00] A strong pair of Bishops.} 21. Ned6 {[%emt 0:00:00]} Rc6 {[%emt 0:00:00]} (21... Qg5 22. Nxc8 (22. Qxd4 $2 Qxg3 23. Re2 Rf4 $19 {[%mdl 64] Skewer}) 22... Rxc8 23. Qxd4 $16) 22. Qd2 {[%emt 0:00:00] Prevents Qg5} Qb8 {[%emt 0:00:00][%cal Oa7a5]} 23. b3 {[%emt 0:00:00]} (23. Qxd4 $2 {loses.} Rxd6 24. Nxd6 Qxd6 $19) 23... Bxe5 {[%emt 0:00:00]} 24. Rxe5 {[%emt 0:00:00]} (24. Nxe5 $14 Rxc1 25. Rxc1 Qxd6 26. Qxd4) 24... Bxc4 $11 {[%emt 0:00:00][%mdl 64] Remove Defender} 25. Nxc4 {[%emt 0:00:00]} Rxc4 {[%emt 0:00:00][%mdl 64] Remove Defender} 26. Rxc4 {[%emt 0:00:00]} Qxe5 {[%emt 0:00:00]} 27. Rxd4 {[%emt 0:00:00][%mdl 4096] Endgame KQR-KQR} d5 {[%emt 0:00:00]} 28. Kh2 {[%emt 0:00:00]} Rf1 {[%emt 0:01:29]} 29. Qb4 {[%emt 0:00:00]} g5 {[%emt 0:02:51]} 30. h4 $1 {[%emt 0:02:58]} Qe1 {[%emt 0:03:31]} 31. Qxe1 {[%emt 0:03:33]} Rxe1 {[%emt 0:00:03]} 32. hxg5 {[%emt 0:00:16] KR-KR} Kf7 {[%emt 0:01:41]} 33. Kh3 {[%emt 0:00:49]} Kg6 {[%emt 0:00:51]} 34. Kh4 $2 {[%emt 0:00:03][%mdl 8192] [#]} (34. Kg4 $11 {and White is okay.}) 34... Rh1+ $2 {[%emt 0:01:09]} (34... Kf5 $1 $19 {[%cal Re1h1]} 35. g4+ Ke5) 35. Kg4 {[%emt 0:00:03]} Rh5 {[%emt 0:00:14]} 36. Kf3 {[%emt 0:01:06]} Rxg5 {[%emt 0:00:14]} 37. g4 {[%emt 0:00:04] Repels Rf5+} Kf6 {[%emt 0:01:09]} 38. Rf4+ {[%emt 0:00:10]} Ke5 {[%emt 0:00:28]} 39. Rf7 {[%emt 0:00:04][%csl LRa7,LRh7]} Kd4 {[%emt 0:00:40] Threatens to win with ...e5.} 40. Rxa7 $2 {[%emt 0:01:53][%mdl 8192] [#] Now White is beyond hope.} ({White must play} 40. Rxh7 $15 Rg8 41. Rh1 (41. Rxa7 e5 $15)) 40... e5 $1 $19 {[%emt 0:00:39][%cal Be6e5,Be5e4,Be4e3,Be3e2][%mdl 32] aiming for ...e4+.} 41. a4 {[%emt 0:19:46]} ({And not} 41. Rxh7 Rg8 42. Kf2 e4 $15) (41. Kf2 $142 e4 42. Rxh7) 41... e4+ {[%emt 0:01:02] Black is clearly winning.} 42. Kf4 {[%emt 0:04:02]} Re5 {[%emt 0:03:18]} 43. Rxh7 {[%emt 0:02:02]} e3 {[%emt 0:00:55]} 44. Rh1 {[%emt 0:00:03]} e2 {[%emt 0:00:22]} 45. Re1 {[%emt 0:00:04]} Re8 {[%emt 0:01:19] Weighted Error Value: White=0.60/Black=0.12 (very precise)} 0-1

[Event "ETCC Open 2023"]
[Site "Budva"]
[Date "2023.11.11"]
[Round "1.29"]
[White "Schitco, Ivan"]
[Black "Moussard, Jules"]
[Result "0-1"]
[ECO "A21"]
[WhiteElo "2503"]
[BlackElo "2639"]
[Annotator "TA"]
[PlyCount "88"]
[EventDate "2023.11.10"]
[EventType "team-tourn"]
[EventCountry "MNE"]
[SourceTitle "playchess.com"]
[Source "ChessBase"]
[SourceQuality "1"]
[WhiteTeam "Moldova"]
[BlackTeam "France"]
[WhiteTeamCountry "MDA"]
[BlackTeamCountry "FRA"]
[TimeControl "40/5400+30:1800+30"]

{[%evp 9,88,15,13,15,18,8,20,20,19,15,32,-12,6,1,6,-34,-17,-73,-71,-70,-79,-70,-80,-79,-77,-88,-75,-97,-94,-167,-108,-179,-174,-293,-284,-276,-214,-253,-252,-251,-238,-220,-155,-171,-113,-205,-77,-179,-185,-164,-184,-167,-174,-159,-166,-163,-178,-167,-166,-252,-257,-527,-523,-526,-516,-528,-489,-625,-588,-660,-689,-670,-673,-616,-639,-593,-426,-900,-877,-860,-836]} 1. c4 {[%emt 0:00:03]} e5 {[%emt 0:00:20]} 2. Nc3 {[%emt 0:00:11]} Bb4 {[%emt 0:00:20]} 3. Nd5 {[%emt 0:00:28]} a5 {[%emt 0:00:23]} 4. Nf3 {[%emt 0:03:22]} d6 {[%emt 0:04:14]} 5. a3 {[%emt 0:02:45]} Bc5 {[%emt 0:00:10]} 6. e3 {[%emt 0:04:44] A21: English Opening: 1...e5 2 Nc3.} c6 {[%emt 0:00:29]} 7. Nc3 {[%emt 0:00:14]} Ba7 {[%emt 0:02:09]} 8. d4 {[%emt 0:00:14] The position is equal.} Nd7 {[%emt 0:01:08]} 9. Be2 {[%emt 0:08:05]} Ngf6 {[%emt 0:00:30][%cal Bg8f6,Bf6e8,Be8c7][%mdl 32]} 10. g4 {[%emt 0:04:13][%cal Bg2g4,Bg4g5][%mdl 32]} O-O {[%emt 0:04:46]} 11. g5 {[%emt 0:02:54]} Ne8 {[%emt 0:00:45] [#]} 12. dxe5 $146 {[%emt 0:25:55]} ({Predecessor:} 12. Qc2 Nc7 13. h4 Qe7 14. Bd2 b5 15. dxe5 dxe5 16. Bd3 bxc4 17. Bxc4 Ba6 18. Ne4 Bxc4 19. Qxc4 {1-0 Shevchenko,K (2647)-Alekseenko,K (2710) EU-chT 23rd Terme Catez 2021 (7.3)}) 12... Qe7 {[%emt 0:00:36]} 13. Qc2 {[%emt 0:04:46]} (13. exd6 $11 Nxd6 14. b4) 13... Nxe5 $17 {[%emt 0:11:55]} 14. Nxe5 {[%emt 0:01:53]} dxe5 {[%emt 0:01:04]} 15. h4 {[%emt 0:04:59]} f5 {[%emt 0:06:08][%cal Bf7f5,Bf5f4,Bf4f3][%mdl 32]} 16. b4 {[%emt 0:04:56]} Nc7 {[%emt 0:03:17]} (16... axb4 $6 17. axb4 Be6 18. c5 $11) 17. c5 {[%emt 0:03:49]} Be6 {[%emt 0:03:01]} 18. Bb2 {[%emt 0:01:02]} Rad8 {[%emt 0:07:15]} 19. Na4 {[%emt 0:04:57] [#]} (19. Rd1 $17) 19... Qf7 {[%emt 0:03:33]} (19... f4 $1 $19 {[%cal Rf4e3] aiming for ...fxe3.} 20. e4 (20. bxa5 $2 Qf7 $17) (20. Bxe5 $2 fxe3 21. f4 Bb8 $19) 20... f3) 20. Rc1 {[%emt 0:03:05]} (20. bxa5 $2 Bb3 21. Qc3 Bxa4 $19) (20. Nb6 $17 axb4 21. axb4) 20... f4 {[%emt 0:00:38]} 21. e4 {[%emt 0:12:20]} (21. h5 {might work better.} fxe3 22. Qxh7+ {[%mdl 64] Remove Defender, Decoy} Kxh7 23. g6+ Kh6 24. gxf7 exf2+ 25. Kxf2) 21... f3 $19 {[%emt 0:00:53]} 22. Bc4 {[%emt 0:00:39]} Nb5 {[%emt 0:13:47]} 23. Bxe6 {[%emt 0:00:43]} Qxe6 {[%emt 0:00:03]} 24. Qc4 {[%emt 0:02:12]} Qxc4 {[%emt 0:02:22]} 25. Rxc4 {[%emt 0:00:02]} axb4 {[%emt 0:01:20] White is weak on the light squares} 26. axb4 {[%emt 0:00:07] [#]} Bb8 {[%emt 0:00:23]} (26... Rf4 $1 $19 27. Nc3 (27. Bxe5 $2 Rg4 $19) 27... Nd4) 27. Nc3 {[%emt 0:02:41]} (27. Bc1 $17 {keeps fighting.}) 27... Rf4 $40 {[%emt 0:01:19][%mdl 128] Black has strong attack.} (27... Rd3 $19 {is more deadly. Strongly threatening ...Nd4.} 28. Nxb5 cxb5) 28. Nd1 {[%emt 0:01:58]} (28. Nb1 $17) 28... Nd4 {[%emt 0:00:57]} 29. Bxd4 {[%emt 0:00:40]} Rxe4+ {[%emt 0:01:14][%mdl 64] Pin} (29... Rxd4 30. Rxd4 exd4 31. Kd2 $11) 30. Kd2 {[%emt 0:00:01]} Rdxd4+ {[%emt 0:03:57]} (30... exd4 31. Kd3 Rg4 32. Nb2 $17) 31. Rxd4 {[%emt 0:00:01]} Rxd4+ {[%emt 0:00:26][%mdl 4096] Endgame KRB-KRN} 32. Kc3 {[%emt 0:00:12]} Kf7 {[%emt 0:00:23]} 33. Ne3 {[%emt 0:01:05]} Ke6 {[%emt 0:02:27] ...Rd8 would be deadly.} 34. Ra1 {[%emt 0:00:43]} (34. Nc4 $142) 34... Rd8 {[%emt 0:01:22]} (34... Rxh4 35. Ra8 Bc7 36. Re8+ Kd7 37. Rg8 $17) 35. b5 $2 {[%emt 0:01:17]} (35. Ra8 {was worth a try.}) 35... e4 {[%emt 0:00:32] ...Be5+ is the strong threat. Black is clearly winning.} (35... cxb5 $2 36. Rb1 $19) 36. Ra4 {[%emt 0:00:34]} Be5+ {[%emt 0:00:39]} 37. Kc2 {[%emt 0:00:20]} Bd4 {[%emt 0:03:28]} 38. b6 {[%emt 0:00:01]} Rd7 {[%emt 0:01:36]} ({Weaker is} 38... Bxc5 39. Rxe4+ Kd7 40. Re5 Bxb6 41. Rf5 $19) 39. h5 {[%emt 0:01:01]} Ke5 {[%emt 0:03:18] Threatens to win with ...Bxe3.} ({Not} 39... Bxc5 40. Rxe4+ Kf7 41. Rf4+ Ke7 42. Rxf3 $17) 40. Nc4+ {[%emt 0:00:24]} Kd5 {[%emt 0:01:28]} 41. Nd6 {[%emt 0:30:43]} Bxf2 {[%emt 0:32:38]} 42. Nxe4 {[%emt 0:00:18]} Bxc5 {[%emt 0:00:22]} 43. h6 {[%emt 0:00:52]} (43. g6 $142 hxg6 44. Nxc5 Kxc5 45. hxg6) 43... f2 {[%emt 0:00:59]} 44. hxg7 {[%emt 0:00:18]} Rxg7 {[%emt 0:00:12] Weighted Error Value: White=0.52/Black=0.18 (very precise)} (44... f1=R 45. g8=Q+ (45. g8=R Bd4 $17) 45... Rff7 46. Nf6+ Ke5 47. Qb8+ Ke6 48. Nxd7 Rf2+ 49. Kd3 Rf3+ 50. Kd2) 0-1